[Event "FRA-ch Open A-D 2018"]
[Site "Nimes"]
[Date "2018.08.19"]
[Round "2"]
[White "Tourneur, Cloe"]
[Black "Aumont, Eric"]
[Result "0-1"]
[ECO "B23"]
[WhiteElo "1648"]
[BlackElo "1745"]
[Annotator "NA"]
[PlyCount "139"]
[EventDate "2018.08.18"]
[EventType "tourn"]
[EventCountry "FRA"]
[SourceTitle "playchess.com"]
[Source "ChessBase"]
[SourceQuality "1"]
[TimeControl "40/5400+30:1800+30"]

1. e4 {[%emt 0:00:00]} c5 {[%emt 0:00:00]} 2. Nc3 {[%emt 0:00:00]} Nc6 {[%emt 0:00:00]} 3. f4 {[%emt 0:00:00]} g6 {[%emt 0:00:00]} 4. Nf3 {[%emt 0:00:05]} Bg7 {[%emt 0:00:31]} 5. Bc4 {[%emt 0:00:33]} e6 {[%emt 0:00:27]} 6. O-O {[%emt 0:00:27]} Nge7 {[%emt 0:00:12]} 7. d3 {[%emt 0:01:24]} Na5 {[%emt 0:04:08]} 8. Bb3 {[%emt 0:03:16]} Nxb3 {[%emt 0:02:11]} 9. axb3 {[%emt 0:00:35]} d6 {[%emt 0:02:29]} 10. Qe1 {[%emt 0:01:32]} O-O {[%emt 0:05:35]} 11. f5 {[%emt 0:07:28]} exf5 {[%emt 0:01:24]} 12. Qh4 {[%emt 0:02:22]} f6 {[%emt 0:08:13]} 13. Bh6 {[%emt 0:17:31]} Be6 {[%emt 0:02:53]} 14. Rae1 {[%emt 0:09:32]} Qd7 {[%emt 0:10:01]} 15. Bxg7 {[%emt 0:11:29]} Kxg7 {[%emt 0:00:25]} 16. d4 {[%emt 0:01:02]} g5 {[%emt 0:16:35]} 17. Qf2 {[%emt 0:04:41]} b6 {[%emt 0:00:40]} 18. e5 {[%emt 0:02:07]} dxe5 {[%emt 0:03:26]} 19. dxe5 {[%emt 0:00:17]} h6 {[%emt 0:02:04]} 20. exf6+ {[%emt 0:02:52]} Rxf6 {[%emt 0:00:42]} 21. Ne5 {[%emt 0:01:43]} Qc8 {[%emt 0:11:34]} 22. h4 {[%emt 0:10:12]} f4 {[%emt 0:04:58]} 23. hxg5 {[%emt 0:01:16]} hxg5 {[%emt 0:00:45]} 24. Ne4 {[%emt 0:00:44]} Rf5 {[%emt 0:03:41]} 25. Nd6 {[%emt 0:00:22]} Qh8 {[%emt 0:00:22]} 26. Nxf5+ {[%emt 0:01:10]} Nxf5 {[%emt 0:00:17]} 27. Qf3 {[%emt 0:06:15]} Ng3 {[%emt 0:02:47]} 28. Qb7+ {[%emt 0:00:25]} Kf6 {[%emt 0:00:41]} 29. Rf3 {[%emt 0:00:59]} Rd8 {[%emt 0:01:05]} 30. Rd3 {[%emt 0:01:41]} Rxd3 {[%emt 0:03:46]} 31. Nxd3 {[%emt 0:00:33]} Qh1+ {[%emt 0:02:26]} 32. Kf2 {[%emt 0:00:17]} Qh4 {[%emt 0:00:11]} 33. Qc6 {[%emt 0:01:48]} Nf5+ {[%emt 0:01:51]} 34. Kg1 {[%emt 0:00:53]} Ne3 {[%emt 0:01:09]} 35. Rxe3 {[%emt 0:01:39]} fxe3 {[%emt 0:00:33]} 36. Qf3+ {[%emt 0:00:03]} Ke7 {[%emt 0:01:14]} 37. Qb7+ {[%emt 0:01:47]} Bd7 {[%emt 0:01:45]} 38. Qxa7 {[%emt 0:00:55]} e2 {[%emt 0:01:52]} 39. Qa1 {[%emt 0:01:20]} Qd4+ {[%emt 0:01:03]} 40. Kh2 {[%emt 0:00:19]} Bb5 {[%emt 0:04:48]} 41. Qa7+ {[%emt 0:31:52]} Bd7 {[%emt 0:31:03]} 42. Qa1 {[%emt 0:00:16]} Bf5 {[%emt 0:00:00]} 43. Qa7+ {[%emt 0:00:00]} Qd7 {[%emt 0:00:00]} 44. Qxd7+ {[%emt 0:00:00]} Kxd7 {[%emt 0:00:00]} 45. Ne1 {[%emt 0:00:00]} Kd6 {[%emt 0:00:00]} 46. Kg3 Kd5 {[%emt 0:00:00]} 47. Kf3 {[%emt 0:00:00]} c4 {[%emt 0:00:00]} 48. bxc4+ {[%emt 0:00:00]} Kxc4 {[%emt 0:00:00]} 49. Kxe2 {[%emt 0:00:00]} b5 {[%emt 0:00:00]} 50. Kd2 {[%emt 0:00:00]} g4 {[%emt 0:00:00]} 51. g3 {[%emt 0:00:00]} Kd4 {[%emt 0:00:00]} 52. Nd3 {[%emt 0:00:00]} Ke4 {[%emt 0:00:00]} 53. Ke2 {[%emt 0:00:00]} Kd4 {[%emt 0:00:00]} 54. Ne1 {[%emt 0:00:00]} Be4 {[%emt 0:00:00]} 55. Kd2 {[%emt 0:00:00]} Bf5 {[%emt 0:00:25]} 56. b3 {[%emt 0:00:00]} Be6 {[%emt 0:00:45]} 57. c3+ {[%emt 0:00:00]} Ke4 {[%emt 0:00:25]} 58. Nc2 {[%emt 0:00:00]} Bxb3 {[%emt 0:01:47]} 59. Nd4 {[%emt 0:00:00]} Bc4 {[%emt 0:00:49]} 60. Kd1 {[%emt 0:00:00]} Kd3 {[%emt 0:01:04]} 61. Ne2 {[%emt 0:00:00]} Ke3 {[%emt 0:00:30]} 62. Nd4 {[%emt 0:00:00]} Kf2 {[%emt 0:00:30]} 63. Kd2 {[%emt 0:00:00]} Kxg3 {[%emt 0:00:30]} 64. Ke3 {[%emt 0:00:00]} Kh2 {[%emt 0:00:30]} 65. Nf5 {[%emt 0:00:00]} g3 {[%emt 0:00:30]} 66. Nh4 {[%emt 0:02:49]} Bd5 {[%emt 0:01:34]} 67. Kd4 {[%emt 0:01:23]} Bc4 {[%emt 0:01:57]} 68. Kc5 {[%emt 0:00:57]} Kh3 {[%emt 0:00:19]} 69. Ng6 {[%emt 0:00:07]} g2 {[%emt 0:00:28]} 70. Nf4+ {[%emt 0:00:08]} 0-1

[Event "FRA-ch Open A-D 2018"]
[Site "Nimes"]
[Date "2018.08.19"]
[Round "2"]
[White "Astruc, Iban"]
[Black "Auffray-Bonnet, Gaspard"]
[Result "0-1"]
[ECO "A25"]
[WhiteElo "1639"]
[BlackElo "1736"]
[Annotator "NA"]
[PlyCount "58"]
[EventDate "2018.08.18"]
[EventType "tourn"]
[EventCountry "FRA"]
[SourceTitle "playchess.com"]
[Source "ChessBase"]
[SourceQuality "1"]
[TimeControl "40/5400+30:1800+30"]

1. c4 {[%emt 0:00:00]} e5 {[%emt 0:00:00]} 2. Nc3 {[%emt 0:00:00]} Nc6 {[%emt 0:00:00]} 3. g3 {[%emt 0:00:05]} d6 {[%emt 0:00:00]} 4. Bg2 {[%emt 0:00:58]} f5 {[%emt 0:00:13]} 5. e3 {[%emt 0:01:02]} Nf6 {[%emt 0:00:07]} 6. Nge2 {[%emt 0:00:36]} Be7 {[%emt 0:00:26]} 7. O-O {[%emt 0:01:37]} O-O {[%emt 0:00:25]} 8. d3 {[%emt 0:05:36]} Kh8 {[%emt 0:00:43]} 9. a3 {[%emt 0:01:32]} Qe8 {[%emt 0:00:58]} 10. Nd5 {[%emt 0:04:02]} Bd8 {[%emt 0:02:18]} 11. Nec3 {[%emt 0:03:01]} Nxd5 {[%emt 0:00:48]} 12. Nxd5 {[%emt 0:00:34]} Ne7 {[%emt 0:00:38]} 13. b4 {[%emt 0:05:18]} Nxd5 {[%emt 0:00:20]} 14. cxd5 {[%emt 0:00:56]} b6 {[%emt 0:06:28]} 15. Bb2 {[%emt 0:02:23]} Bb7 16. Rc1 {[%emt 0:06:01]} Qf7 {[%emt 0:03:42]} 17. e4 {[%emt 0:10:06]} f4 {[%emt 0:01:10]} 18. Qf3 {[%emt 0:04:11]} Bc8 {[%emt 0:01:53]} 19. d4 {[%emt 0:03:13]} exd4 {[%emt 0:03:18]} 20. Bxd4 {[%emt 0:00:20]} Ba6 {[%emt 0:03:16]} 21. Rfe1 {[%emt 0:02:35]} Rc8 {[%emt 0:03:16]} 22. Bh3 {[%emt 0:04:22]} Rb8 {[%emt 0:02:17]} 23. Be6 {[%emt 0:02:45]} Qg6 {[%emt 0:01:16]} 24. Bf5 {[%emt 0:02:46]} Qh6 {[%emt 0:00:36]} 25. Qxf4 {[%emt 0:06:20]} Bg5 {[%emt 0:00:49]} 26. Rxc7 {[%emt 0:12:11]} Bxf4 {[%emt 0:00:40]} 27. Rxg7 {[%emt 0:04:49]} Qxg7 {[%emt 0:00:20]} 28. Bxg7+ {[%emt 0:00:06]} Kxg7 {[%emt 0:00:10]} 29. gxf4 {[%emt 0:00:08]} Bc8 {[%emt 0:00:23]} 0-1

[Event "FRA-ch Open A-D 2018"]
[Site "Nimes"]
[Date "2018.08.19"]
[Round "2"]
[White "Brun, Michel"]
[Black "De Castet, Antoine"]
[Result "0-1"]
[ECO "D52"]
[WhiteElo "1491"]
[BlackElo "1367"]
[Annotator "NA"]
[PlyCount "100"]
[EventDate "2018.08.18"]
[EventType "tourn"]
[EventCountry "FRA"]
[SourceTitle "playchess.com"]
[Source "ChessBase"]
[SourceQuality "1"]
[TimeControl "40/5400+30:1800+30"]

1. d4 {[%emt 0:00:00]} d5 {[%emt 0:00:00]} 2. c4 {[%emt 0:00:00]} e6 {[%emt 0:00:00]} 3. Nc3 {[%emt 0:00:00]} c6 {[%emt 0:00:49]} 4. Nf3 {[%emt 0:00:00]} Nf6 5. Bg5 {[%emt 0:00:25]} Nbd7 {[%emt 0:02:47]} 6. e3 {[%emt 0:00:30]} Qa5 {[%emt 0:01:00]} 7. a3 {[%emt 0:10:43]} Ne4 {[%emt 0:08:40]} 8. Qa4 {[%emt 0:14:49]} Qxa4 {[%emt 0:02:30]} 9. Nxa4 {[%emt 0:01:45]} dxc4 {[%emt 0:01:09]} 10. Bxc4 {[%emt 0:01:03]} b5 {[%emt 0:00:04]} 11. Bd3 {[%emt 0:17:05]} Nxg5 {[%emt 0:00:25]} 12. Nxg5 {[%emt 0:03:26]} bxa4 {[%emt 0:00:54]} 13. Nxh7 {[%emt 0:06:07]} Be7 14. f4 {[%emt 0:05:00]} Rb8 {[%emt 0:07:04]} 15. Rb1 {[%emt 0:01:26]} g6 {[%emt 0:06:23]} 16. Ng5 {[%emt 0:01:34]} Bxg5 {[%emt 0:00:23]} 17. fxg5 {[%emt 0:00:33]} Ke7 {[%emt 0:03:57]} 18. g4 {[%emt 0:07:13]} Bb7 {[%emt 0:04:21]} 19. Be4 {[%emt 0:05:07]} Rh3 {[%emt 0:08:33]} 20. Bc2 {[%emt 0:12:36]} Rxe3+ {[%emt 0:07:01]} 21. Kd2 {[%emt 0:01:51]} Rh3 {[%emt 0:00:43]} 22. Bxa4 {[%emt 0:01:04]} c5 {[%emt 0:04:42]} 23. Rhc1 {[%emt 0:01:57]} Rxh2+ {[%emt 0:02:20]} 24. Ke3 {[%emt 0:04:11]} cxd4+ {[%emt 0:03:06]} 25. Kxd4 {[%emt 0:00:31]} Rc8 {[%emt 0:01:25]} 26. Rxc8 {[%emt 0:01:20]} Bxc8 {[%emt 0:00:45]} 27. Rc1 {[%emt 0:00:24]} Kd8 {[%emt 0:01:55]} 28. Rc2 {[%emt 0:02:40]} Rxc2 {[%emt 0:02:12]} 29. Bxc2 {[%emt 0:00:11]} Bb7 30. Ke3 {[%emt 0:00:54]} Ne5 {[%emt 0:04:19]} 31. Kf4 {[%emt 0:00:31]} Nc4 {[%emt 0:00:41]} 32. b3 {[%emt 0:00:31]} Nxa3 {[%emt 0:00:55]} 33. Bd3 {[%emt 0:00:16]} a6 {[%emt 0:01:22]} 34. Ke5 {[%emt 0:00:37]} Ke7 {[%emt 0:00:59]} 35. Be2 {[%emt 0:00:32]} Nb5 {[%emt 0:01:24]} 36. Bd3 {[%emt 0:00:31]} Nc7 {[%emt 0:03:35]} 37. Be2 {[%emt 0:00:32]} a5 {[%emt 0:02:38]} 38. Bd1 {[%emt 0:00:18]} Bd5 {[%emt 0:01:31]} 39. Kd4 {[%emt 0:00:33]} Kd6 {[%emt 0:01:07]} 40. Bc2 {[%emt 0:00:36]} Bf3 {[%emt 0:00:52]} 41. Ke3 {[%emt 0:30:30]} Bxg4 {[%emt 0:30:39]} 42. Kf4 {[%emt 0:00:27]} Bf5 {[%emt 0:02:12]} 43. Bd1 {[%emt 0:00:21]} Nd5+ {[%emt 0:03:00]} 44. Kf3 {[%emt 0:00:33]} Nc3 {[%emt 0:00:48]} 45. Be2 {[%emt 0:00:00]} Nxe2 {[%emt 0:00:00]} 46. Kxe2 {[%emt 0:00:00]} Bc2 {[%emt 0:00:00]} 47. Kd2 {[%emt 0:00:00]} Bxb3 {[%emt 0:00:00]} 48. Kc3 {[%emt 0:00:00]} a4 {[%emt 0:00:00]} 49. Kb2 {[%emt 0:00:00]} e5 {[%emt 0:00:00]} 50. Ka1 {[%emt 0:00:00]} e4 {[%emt 0:00:00]} 0-1

[Event "FRA-ch Open A-D 2018"]
[Site "Nimes"]
[Date "2018.08.19"]
[Round "2"]
[White "Berfini, Ghjuliana"]
[Black "Koch, Emilie"]
[Result "1/2-1/2"]
[ECO "D02"]
[WhiteElo "1363"]
[BlackElo "1498"]
[Annotator "NA"]
[PlyCount "142"]
[EventDate "2018.08.18"]
[EventType "tourn"]
[EventCountry "FRA"]
[SourceTitle "playchess.com"]
[Source "ChessBase"]
[SourceQuality "1"]
[TimeControl "40/5400+30:1800+30"]

1. d4 {[%emt 0:00:00]} d5 {[%emt 0:00:00]} 2. Nf3 {[%emt 0:00:00]} Nf6 {[%emt 0:01:29]} 3. g3 {[%emt 0:00:37]} Bf5 {[%emt 0:03:13]} 4. Bg2 {[%emt 0:01:33]} h6 {[%emt 0:03:40]} 5. O-O {[%emt 0:01:27]} Qc8 {[%emt 0:02:40]} 6. Bf4 {[%emt 0:04:21]} Nc6 {[%emt 0:07:49]} 7. Nc3 {[%emt 0:02:19]} a6 {[%emt 0:06:38]} 8. a3 {[%emt 0:05:37]} e6 {[%emt 0:02:29]} 9. b4 {[%emt 0:03:42]} b5 {[%emt 0:07:30]} 10. Ne5 {[%emt 0:08:45]} Nxe5 {[%emt 0:03:45]} 11. dxe5 {[%emt 0:02:34]} Nd7 {[%emt 0:01:26]} 12. e4 {[%emt 0:01:34]} dxe4 {[%emt 0:02:18]} 13. Nxe4 {[%emt 0:00:35]} Rb8 {[%emt 0:02:29]} 14. Qd4 {[%emt 0:09:04]} Be7 {[%emt 0:02:49]} 15. Rac1 {[%emt 0:04:56]} O-O {[%emt 0:03:21]} 16. c4 {[%emt 0:01:25]} Rd8 {[%emt 0:02:34]} 17. Qc3 {[%emt 0:08:49]} Nb6 {[%emt 0:07:51]} 18. cxb5 {[%emt 0:04:13]} Nd5 {[%emt 0:02:09]} 19. Qb2 {[%emt 0:04:42]} Nxf4 {[%emt 0:04:01]} 20. gxf4 {[%emt 0:04:53]} axb5 {[%emt 0:04:54]} 21. Qc3 {[%emt 0:02:45]} Rd7 {[%emt 0:02:33]} 22. Nc5 {[%emt 0:03:31]} Bxc5 {[%emt 0:02:55]} 23. Qxc5 {[%emt 0:00:21]} Qa6 {[%emt 0:03:39]} 24. Qc6 {[%emt 0:06:38]} Qxc6 {[%emt 0:03:18]} 25. Rxc6 {[%emt 0:00:24]} Rbd8 {[%emt 0:00:43]} 26. Rc5 {[%emt 0:02:38]} Bd3 {[%emt 0:08:08]} 27. Bc6 {[%emt 0:00:52]} Bxf1 {[%emt 0:04:47]} 28. Bxd7 {[%emt 0:00:12]} Rxd7 {[%emt 0:00:19]} 29. Kxf1 {[%emt 0:00:11]} Rd3 {[%emt 0:00:48]} 30. Rxc7 {[%emt 0:00:38]} Rxa3 {[%emt 0:00:15]} 31. Rc5 {[%emt 0:00:29]} Rf3 {[%emt 0:00:59]} 32. Rxb5 {[%emt 0:00:21]} Rxf4 {[%emt 0:00:22]} 33. Rb8+ {[%emt 0:00:25]} Kh7 {[%emt 0:00:03]} 34. b5 {[%emt 0:00:20]} Rb4 {[%emt 0:01:57]} 35. b6 {[%emt 0:00:37]} Kg6 {[%emt 0:00:34]} 36. Ke2 {[%emt 0:00:25]} Kf5 {[%emt 0:00:43]} 37. Kd3 {[%emt 0:00:19]} Kxe5 {[%emt 0:00:42]} 38. Kc3 {[%emt 0:00:23]} Rb1 {[%emt 0:00:31]} 39. b7 {[%emt 0:00:21]} Kd6 {[%emt 0:00:37]} 40. Rg8 {[%emt 0:02:20]} Rxb7 {[%emt 0:01:36]} 41. Rxg7 {[%emt 0:30:08]} Ke7 {[%emt 0:08:31]} 42. Rh7 {[%emt 0:00:00]} Kf6 {[%emt 0:02:13]} 43. Rxh6+ {[%emt 0:00:00]} Kg7 {[%emt 0:00:22]} 44. Rh4 {[%emt 0:00:00]} Kg6 {[%emt 0:01:30]} 45. Rd4 {[%emt 0:00:00]} e5 {[%emt 0:01:34]} 46. Rd6+ {[%emt 0:00:00]} f6 {[%emt 0:00:31]} 47. h4 {[%emt 0:00:00]} Rh7 {[%emt 0:01:05]} 48. Kd3 {[%emt 0:00:00]} Rxh4 {[%emt 0:00:33]} 49. Ke3 {[%emt 0:00:00]} Kf5 {[%emt 0:01:15]} 50. f3 {[%emt 0:00:00]} Rb4 {[%emt 0:02:44]} 51. Rc6 {[%emt 0:00:00]} Rb3+ {[%emt 0:01:45]} 52. Kf2 {[%emt 0:00:00]} Rd3 {[%emt 0:02:29]} 53. Ke2 {[%emt 0:00:00]} Rd4 {[%emt 0:00:23]} 54. Ke3 {[%emt 0:00:00]} Kg6 {[%emt 0:00:46]} 55. Rc5 {[%emt 0:00:00]} Kf7 {[%emt 0:00:58]} 56. Rc6 {[%emt 0:00:00]} Ke7 {[%emt 0:00:39]} 57. Rb6 {[%emt 0:00:00]} f5 {[%emt 0:03:07]} 58. Rb7+ {[%emt 0:00:00]} Rd7 {[%emt 0:01:00]} 59. Rb4 {[%emt 0:00:00]} Ke6 {[%emt 0:00:58]} 60. Rc4 {[%emt 0:00:00]} Kd5 {[%emt 0:01:12]} 61. Ra4 {[%emt 0:00:00]} Rc7 {[%emt 0:00:37]} 62. Ra3 {[%emt 0:00:00]} Rc4 {[%emt 0:00:58]} 63. Ra5+ {[%emt 0:00:00]} Rc5 {[%emt 0:00:14]} 64. Ra3 {[%emt 0:00:00]} Rb5 {[%emt 0:02:22]} 65. Kd3 {[%emt 0:00:00]} Rc5 {[%emt 0:01:12]} 66. Ra4 {[%emt 0:00:00]} Kd6 {[%emt 0:00:55]} 67. Rb4 {[%emt 0:00:00]} Rd5+ {[%emt 0:01:11]} 68. Ke3 {[%emt 0:00:00]} Rc5 {[%emt 0:00:30]} 69. Kd3 {[%emt 0:00:00]} Rd5+ {[%emt 0:01:10]} 70. Ke3 {[%emt 0:00:00]} Rc5 {[%emt 0:00:56]} 71. Kd3 {[%emt 0:00:00]} Rd5+ {[%emt 0:01:52] Kd4} 1/2-1/2

[Event "FRA-ch Open A-D 2018"]
[Site "Nimes"]
[Date "2018.08.19"]
[Round "2"]
[White "Sithisak, Remi"]
[Black "Candela, Leo-Thierry"]
[Result "1-0"]
[ECO "A85"]
[WhiteElo "1360"]
[BlackElo "1496"]
[Annotator "NA"]
[PlyCount "85"]
[EventDate "2018.08.18"]
[EventType "tourn"]
[EventCountry "FRA"]
[SourceTitle "playchess.com"]
[Source "ChessBase"]
[SourceQuality "1"]
[TimeControl "40/5400+30:1800+30"]

1. d4 {[%emt 0:00:00]} f5 {[%emt 0:01:17]} 2. c4 {[%emt 0:00:09]} Nf6 {[%emt 0:00:12]} 3. Nc3 {[%emt 0:00:46]} e6 {[%emt 0:00:14]} 4. Nf3 {[%emt 0:01:00]} d5 {[%emt 0:00:13]} 5. Bg5 {[%emt 0:00:58]} c6 {[%emt 0:00:18]} 6. e3 {[%emt 0:00:38]} Bd6 {[%emt 0:02:45]} 7. Bd3 {[%emt 0:01:39]} O-O {[%emt 0:00:16]} 8. Qc2 {[%emt 0:01:32]} Qe8 {[%emt 0:00:55]} 9. cxd5 {[%emt 0:03:05]} exd5 {[%emt 0:01:40]} 10. Bxf5 {[%emt 0:12:56]} Bxf5 {[%emt 0:00:44]} 11. Qxf5 {[%emt 0:00:03]} Ne4 {[%emt 0:01:29]} 12. Qg4 {[%emt 0:08:09]} Nd7 {[%emt 0:04:10]} 13. O-O {[%emt 0:11:58]} Ndf6 {[%emt 0:04:53]} 14. Qh4 {[%emt 0:04:03]} Qg6 {[%emt 0:05:34]} 15. Ne2 {[%emt 0:09:17]} Nh5 {[%emt 0:05:06]} 16. Nf4 {[%emt 0:05:49]} Nxf4 {[%emt 0:04:06]} 17. Bxf4 {[%emt 0:00:25]} Be7 {[%emt 0:04:57]} 18. Qxe7 {[%emt 0:03:57]} Rf7 {[%emt 0:00:12]} 19. Qh4 {[%emt 0:02:08]} Raf8 {[%emt 0:00:14]} 20. Ne5 {[%emt 0:02:04]} Qe6 {[%emt 0:03:12]} 21. Nxf7 {[%emt 0:02:06]} Qxf7 {[%emt 0:00:14]} 22. f3 {[%emt 0:05:06]} Nd2 {[%emt 0:00:49]} 23. Rfc1 {[%emt 0:00:56]} Qg6 {[%emt 0:00:29]} 24. Qg3 {[%emt 0:02:41]} Qe6 {[%emt 0:00:40]} 25. b3 {[%emt 0:01:38]} Rf6 {[%emt 0:00:45]} 26. Qe1 {[%emt 0:00:57]} Nxf3+ {[%emt 0:00:34]} 27. gxf3 {[%emt 0:00:08]} Rg6+ {[%emt 0:00:13]} 28. Kh1 {[%emt 0:00:50]} Qh3 {[%emt 0:01:20]} 29. Qf2 {[%emt 0:01:38]} Qd7 {[%emt 0:02:26]} 30. Rg1 {[%emt 0:00:22]} Re6 {[%emt 0:00:13]} 31. Be5 {[%emt 0:00:38]} g6 {[%emt 0:00:38]} 32. f4 {[%emt 0:01:11]} Re8 {[%emt 0:01:14]} 33. Qh4 {[%emt 0:00:56]} Qf5 {[%emt 0:01:03]} 34. Qf6 {[%emt 0:01:46]} Qxf6 {[%emt 0:01:21]} 35. Bxf6 {[%emt 0:00:02]} Rxe3 {[%emt 0:00:24]} 36. f5 {[%emt 0:00:55]} Kf7 37. fxg6+ {[%emt 0:00:41]} hxg6 {[%emt 0:01:53]} 38. Raf1 {[%emt 0:00:46]} Re6 {[%emt 0:01:17]} 39. Bh4+ {[%emt 0:00:34]} Kg7 {[%emt 0:01:29]} 40. Re1 {[%emt 0:00:16]} Rd6 {[%emt 0:01:09]} 41. Re7+ {[%emt 0:30:07]} Kf8 {[%emt 0:30:38]} 42. Rf1+ {[%emt 0:00:38]} Kg8 {[%emt 0:00:20]} 43. Rf6 {[%emt 0:00:39]} 1-0

[Event "FRA-ch Open A-D 2018"]
[Site "Nimes"]
[Date "2018.08.19"]
[Round "2"]
[White "Bruneteau, Damien"]
[Black "Marcellier, Clement"]
[Result "0-1"]
[ECO "A56"]
[WhiteElo "1358"]
[BlackElo "1491"]
[Annotator "NA"]
[PlyCount "121"]
[EventDate "2018.08.18"]
[EventType "tourn"]
[EventCountry "FRA"]
[SourceTitle "playchess.com"]
[Source "ChessBase"]
[SourceQuality "1"]
[TimeControl "40/5400+30:1800+30"]

1. d4 {[%emt 0:00:00]} Nf6 {[%emt 0:00:00]} 2. c4 {[%emt 0:00:04]} c5 {[%emt 0:00:00]} 3. d5 {[%emt 0:00:23]} e5 {[%emt 0:00:08]} 4. Bg5 {[%emt 0:02:42]} g6 {[%emt 0:01:19]} 5. Nc3 {[%emt 0:02:32]} Bg7 {[%emt 0:03:07]} 6. e4 {[%emt 0:02:07]} d6 {[%emt 0:00:27]} 7. Nf3 {[%emt 0:02:21]} O-O {[%emt 0:00:48]} 8. Qd2 {[%emt 0:02:58]} Na6 {[%emt 0:08:28]} 9. Be2 {[%emt 0:03:08]} Nc7 {[%emt 0:00:31]} 10. O-O {[%emt 0:01:47]} Bd7 {[%emt 0:04:03]} 11. Rab1 {[%emt 0:06:59]} a6 {[%emt 0:00:39]} 12. Ne1 {[%emt 0:05:31]} b5 {[%emt 0:01:58]} 13. f4 {[%emt 0:08:16]} b4 {[%emt 0:01:30]} 14. Nd1 {[%emt 0:05:19]} Nxe4 {[%emt 0:00:35]} 15. Qe3 {[%emt 0:05:44]} f6 {[%emt 0:02:36]} 16. Qxe4 {[%emt 0:04:42]} Bf5 {[%emt 0:00:32]} 17. Qe3 {[%emt 0:02:44]} Bxb1 {[%emt 0:00:23]} 18. Bh4 {[%emt 0:01:27]} exf4 {[%emt 0:02:30]} 19. Qf3 {[%emt 0:02:18]} g5 {[%emt 0:00:25]} 20. Bf2 {[%emt 0:00:22]} Re8 {[%emt 0:02:55]} 21. Bd3 {[%emt 0:01:29]} Bxd3 {[%emt 0:03:03]} 22. Nxd3 {[%emt 0:00:00]} Qd7 {[%emt 0:03:00]} 23. g3 {[%emt 0:04:29]} Qh3 {[%emt 0:03:34]} 24. b3 {[%emt 0:02:29]} fxg3 {[%emt 0:00:53]} 25. Bxg3 {[%emt 0:00:46]} g4 {[%emt 0:02:55]} 26. Qf2 {[%emt 0:01:37]} Rad8 {[%emt 0:04:40]} 27. Ne3 {[%emt 0:05:49]} Bh6 {[%emt 0:04:25]} 28. Nf4 {[%emt 0:02:58]} Bxf4 {[%emt 0:00:09]} 29. Qxf4 {[%emt 0:00:33]} Rf8 {[%emt 0:05:40]} 30. Qf2 {[%emt 0:10:35]} Qh5 {[%emt 0:02:51]} 31. Nf5 {[%emt 0:02:31]} Ne8 {[%emt 0:01:25]} 32. Ne7+ {[%emt 0:03:51]} Kh8 {[%emt 0:00:56]} 33. Nf5 {[%emt 0:00:23]} Qg5 {[%emt 0:01:42]} 34. Ne7 {[%emt 0:02:38]} Rd7 {[%emt 0:01:04]} 35. Nf5 {[%emt 0:01:09]} Rff7 {[%emt 0:02:52]} 36. Qb2 {[%emt 0:01:06]} h5 {[%emt 0:03:38]} 37. Qe2 {[%emt 0:01:18]} Rd8 {[%emt 0:03:32]} 38. Qe6 {[%emt 0:00:57]} Rfd7 {[%emt 0:01:22]} 39. Bh4 {[%emt 0:00:41]} Qg6 {[%emt 0:01:32]} 40. Ne7 {[%emt 0:01:37]} Qg7 {[%emt 0:03:23]} 41. Bxf6 {[%emt 0:31:18]} Nxf6 {[%emt 0:30:07]} 42. Rxf6 {[%emt 0:00:00]} Rxe7 {[%emt 0:00:00]} 43. Rh6+ {[%emt 0:00:00]} Qxh6 {[%emt 0:00:00]} 44. Qxh6+ {[%emt 0:00:00]} Kg8 {[%emt 0:00:00]} 45. Qg5+ {[%emt 0:00:00]} Kf8 {[%emt 0:00:00]} 46. Qf6+ {[%emt 0:00:00]} Ke8 {[%emt 0:00:00]} 47. Qg6+ {[%emt 0:00:00]} Kd7 {[%emt 0:00:00]} 48. Qf5+ {[%emt 0:00:00]} Kc7 {[%emt 0:00:00]} 49. Qf2 {[%emt 0:00:00]} Rde8 {[%emt 0:00:00]} 50. Qf6 {[%emt 0:00:00]} Re1+ {[%emt 0:00:00]} 51. Kg2 {[%emt 0:00:00]} R1e2+ {[%emt 0:00:00]} 52. Kg3 {[%emt 0:00:00]} R8e3+ {[%emt 0:00:00]} 53. Kh4 {[%emt 0:00:00]} Rxh2+ {[%emt 0:00:00]} 54. Kg5 {[%emt 0:00:00]} Re5+ {[%emt 0:00:00]} 55. Kg6 {[%emt 0:00:00]} Rhe2 {[%emt 0:00:00]} 56. Qf7+ {[%emt 0:00:00]} Re7 {[%emt 0:00:00]} 57. Qf8 {[%emt 0:00:00]} Re8 {[%emt 0:00:00]} 58. Qf7+ {[%emt 0:00:00]} R2e7 {[%emt 0:00:00]} 59. Qf6 {[%emt 0:00:00]} Rg8+ {[%emt 0:00:00]} 60. Kh6 {[%emt 0:00:00]} Reg7 {[%emt 0:00:00]} 61. Qf1 0-1

[Event "FRA-ch Open A-D 2018"]
[Site "Nimes"]
[Date "2018.08.20"]
[Round "3"]
[White "Giacomini, Hector"]
[Black "Maleki, Nicolas"]
[Result "1-0"]
[ECO "E20"]
[WhiteElo "2196"]
[BlackElo "2094"]
[Annotator "NA"]
[PlyCount "71"]
[EventDate "2018.08.18"]
[EventType "tourn"]
[EventCountry "FRA"]
[SourceTitle "playchess.com"]
[Source "ChessBase"]
[SourceQuality "1"]
[TimeControl "40/5400+30:1800+30"]

1. d4 {[%emt 0:00:00]} Nf6 {[%emt 0:00:05]} 2. c4 {[%emt 0:00:01]} e6 {[%emt 0:00:14]} 3. Nc3 {[%emt 0:00:47]} Bb4 {[%emt 0:00:22]} 4. Bd2 {[%emt 0:00:46]} b6 {[%emt 0:03:17]} 5. Nf3 {[%emt 0:00:59]} Bb7 {[%emt 0:00:45]} 6. e3 {[%emt 0:00:16]} O-O {[%emt 0:01:35]} 7. Be2 {[%emt 0:00:39]} Bxc3 {[%emt 0:08:56]} 8. Bxc3 {[%emt 0:00:06]} Ne4 $11 {[%emt 0:00:24] LiveBook: 9 Games} 9. Rc1 {[%emt 0:00:50]} d5 {[%emt 0:07:52]} 10. O-O {[%emt 0:01:26]} Nd7 {[%emt 0:01:59]} 11. cxd5 {[%emt 0:15:19]} exd5 {[%emt 0:04:51]} 12. Qa4 {[%emt 0:01:50]} c6 {[%emt 0:07:09]} 13. Rfd1 {[%emt 0:04:04]} f5 {[%emt 0:03:17]} 14. Bb4 {[%emt 0:05:37]} Rf6 {[%emt 0:01:04]} 15. g3 {[%emt 0:11:24]} Qe8 {[%emt 0:06:27]} 16. Rc2 {[%emt 0:05:42]} a5 {[%emt 0:19:58]} 17. Be1 {[%emt 0:00:18]} g5 {[%emt 0:02:48]} 18. Qb3 {[%emt 0:03:16]} Qg6 {[%emt 0:02:05]} 19. Ne5 {[%emt 0:01:02]} Nxe5 {[%emt 0:01:33]} 20. dxe5 {[%emt 0:00:05]} Rf7 {[%emt 0:00:56]} 21. Qxb6 {[%emt 0:00:32]} f4 {[%emt 0:00:20]} 22. Rdc1 {[%emt 0:06:20]} fxg3 {[%emt 0:09:30]} 23. hxg3 {[%emt 0:00:20]} g4 {[%emt 0:02:22]} 24. Bd3 {[%emt 0:02:34]} Re8 {[%emt 0:02:52]} 25. Qd4 {[%emt 0:04:06]} Qh5 {[%emt 0:01:44]} 26. Bxe4 {[%emt 0:02:19]} dxe4 {[%emt 0:00:03]} 27. e6 {[%emt 0:03:00]} Rxe6 {[%emt 0:01:55]} 28. Rc5 {[%emt 0:03:57]} Qh6 {[%emt 0:07:50]} 29. Rd1 {[%emt 0:02:59]} Qf6 {[%emt 0:01:07]} 30. Qxf6 {[%emt 0:05:32]} Rfxf6 {[%emt 0:00:58]} 31. Rd8+ {[%emt 0:04:27]} Kf7 {[%emt 0:00:37]} 32. Bc3 {[%emt 0:00:15]} Rg6 {[%emt 0:00:16]} 33. Rf5+ {[%emt 0:05:22]} Ke7 {[%emt 0:00:11]} 34. Rdf8 {[%emt 0:00:48]} Ba6 {[%emt 0:00:49]} 35. Bxa5 {[%emt 0:02:00]} Ref6 {[%emt 0:00:04]} 36. R8xf6 {[%emt 0:00:27]} 1-0